[Event "25th Bosnjaci Open 2020"]
[Site "Bosnjaci"]
[Date "2020.01.06"]
[Round "6.10"]
[White "Muskinja, Luka"]
[Black "Matanovic, Luka"]
[Result "0-1"]
[ECO "A06"]
[WhiteElo "1901"]
[BlackElo "2256"]
[Annotator "ChessBase"]
[PlyCount "80"]
[EventDate "2020.01.03"]
[EventType "swiss"]
[EventCountry "CRO"]
[SourceTitle "playchess.com"]
[Source "ChessBase"]
[SourceQuality "1"]
[TimeControl "5400+30"]

1. Nf3 {[%emt 0:00:30]} d5 {[%emt 0:00:30]} 2. b3 {[%emt 0:01:30]} c5 {[%emt 0:00:00]} 3. e3 {[%emt 0:00:30]} a6 {[%emt 0:00:00]} 4. Bb2 {[%emt 0:01:30]} Nc6 {[%emt 0:00:30]} 5. d4 {[%emt 0:01:30]} Bg4 {[%emt 0:02:30]} 6. a3 {[%emt 0:06:30]} cxd4 {[%emt 0:05:30]} 7. exd4 {[%emt 0:00:00]} e6 {[%emt 0:01:30]} 8. Bd3 {[%emt 0:02:00]} Bd6 {[%emt 0:02:30]} 9. Nbd2 {[%emt 0:03:30]} Qf6 {[%emt 0:03:30]} 10. c4 {[%emt 0:06:30]} Nge7 {[%emt 0:03:30]} 11. Qc2 {[%emt 0:03:30]} Ng6 {[%emt 0:07:30]} 12. Bxg6 {[%emt 0:13:30]} hxg6 {[%emt 0:00:30]} 13. Qd3 {[%emt 0:01:30]} Kf8 {[%emt 0:07:30]} 14. Kf1 {[%emt 0:04:30]} Bf5 {[%emt 0:11:30]} 15. Qe2 {[%emt 0:01:30]} g5 {[%emt 0:06:30]} 16. Ne5 {[%emt 0:05:30]} Bxe5 {[%emt 0:02:30]} 17. dxe5 {[%emt 0:00:30]} Qg6 {[%emt 0:00:00]} 18. Qe3 {[%emt 0:00:30]} Rd8 {[%emt 0:01:00]} 19. Nf3 {[%emt 0:08:30]} dxc4 {[%emt 0:06:30]} 20. bxc4 {[%emt 0:00:30]} Rd3 {[%emt 0:03:30]} 21. Qxg5 {[%emt 0:05:30]} Qxg5 {[%emt 0:01:30]} 22. Nxg5 {[%emt 0:00:30]} Rd2 {[%emt 0:00:00]} 23. Bc3 {[%emt 0:06:30]} Rc2 {[%emt 0:01:00]} 24. Bb4+ {[%emt 0:00:00]} Nxb4 {[%emt 0:01:30]} 25. axb4 {[%emt 0:00:00]} Bd3+ {[%emt 0:00:30]} 26. Kg1 {[%emt 0:01:30]} Rh4 {[%emt 0:01:30]} 27. Nf3 {[%emt 0:03:30]} Rhxc4 {[%emt 0:00:30]} 28. h3 {[%emt 0:01:30]} Be4 {[%emt 0:03:30]} 29. Ne1 {[%emt 0:03:50]} Rc1 {[%emt 0:01:30]} 30. Rxc1 {[%emt 0:00:20]} Rxc1 {[%emt 0:00:30]} 31. Kh2 {[%emt 0:00:42]} b6 {[%emt 0:01:30]} 32. f3 {[%emt 0:00:53]} Bb1 {[%emt 0:02:30]} 33. f4 {[%emt 0:05:54]} Be4 {[%emt 0:00:30]} 34. Kg3 {[%emt 0:04:14]} a5 {[%emt 0:00:30]} 35. bxa5 {[%emt 0:01:17]} bxa5 {[%emt 0:00:30]} 36. Kg4 {[%emt 0:01:25]} a4 {[%emt 0:00:30]} 37. Rh2 {[%emt 0:00:17]} Rxe1 {[%emt 0:00:30]} 38. g3 {[%emt 0:00:11]} a3 {[%emt 0:00:30]} 39. Ra2 {[%emt 0:00:29]} Re3 {[%emt 0:00:30]} 40. h4 {[%emt 0:00:19]} Bf5+ {[%emt 0:00:30]} 0-1

[Event "25th Bosnjaci Open 2020"]
[Site "Bosnjaci"]
[Date "2020.01.06"]
[Round "6.11"]
[White "Dubrovic, Mihovil"]
[Black "Bobanac, Miro"]
[Result "0-1"]
[ECO "B02"]
[WhiteElo "1900"]
[BlackElo "2218"]
[Annotator "ChessBase"]
[PlyCount "66"]
[EventDate "2020.01.03"]
[EventType "swiss"]
[EventCountry "CRO"]
[SourceTitle "playchess.com"]
[Source "ChessBase"]
[SourceQuality "1"]
[TimeControl "5400+30"]

1. e4 {[%emt 0:00:30]} Nf6 {[%emt 0:00:30]} 2. Nc3 {[%emt 0:00:00]} d5 {[%emt 0:00:30]} 3. e5 {[%emt 0:01:00]} d4 {[%emt 0:00:30]} 4. exf6 {[%emt 0:00:30]} dxc3 {[%emt 0:00:00]} 5. fxg7 {[%emt 0:00:30]} cxd2+ {[%emt 0:00:00]} 6. Qxd2 {[%emt 0:00:30]} Bxg7 {[%emt 0:01:30]} 7. Qxd8+ {[%emt 0:04:30]} Kxd8 {[%emt 0:00:00]} 8. Bc4 {[%emt 0:06:30]} e6 {[%emt 0:03:00]} 9. Nf3 {[%emt 0:03:30]} b6 {[%emt 0:02:30]} 10. Bg5+ {[%emt 0:02:30]} f6 {[%emt 0:02:30]} 11. O-O-O+ {[%emt 0:01:30]} Ke7 {[%emt 0:01:30]} 12. Bh4 {[%emt 0:04:30]} c5 {[%emt 0:11:30]} 13. Rhe1 {[%emt 0:01:30]} Nc6 {[%emt 0:00:30]} 14. Bd5 {[%emt 0:16:30]} Bd7 {[%emt 0:01:30]} 15. Re2 {[%emt 0:03:30]} Rae8 {[%emt 0:04:30]} 16. Bc4 {[%emt 0:05:30]} Na5 {[%emt 0:05:30]} 17. Ne5 {[%emt 0:09:30]} Bc8 {[%emt 0:00:30]} 18. Bb5 {[%emt 0:02:30]} Rd8 {[%emt 0:00:30]} 19. Nc6+ {[%emt 0:04:30]} Nxc6 {[%emt 0:00:00]} 20. Bxc6 {[%emt 0:03:30]} Bh6+ {[%emt 0:00:00]} 21. Re3 {[%emt 0:00:30]} Bxe3+ {[%emt 0:01:30]} 22. fxe3 {[%emt 0:00:00]} Rxd1+ {[%emt 0:00:30]} 23. Kxd1 {[%emt 0:00:00]} e5 {[%emt 0:02:30]} 24. Bf3 {[%emt 0:02:30]} Rd8+ {[%emt 0:00:30]} 25. Ke1 {[%emt 0:01:30]} Be6 {[%emt 0:00:30]} 26. a3 {[%emt 0:00:30]} b5 {[%emt 0:04:30]} 27. Bf2 {[%emt 0:00:30]} a5 {[%emt 0:01:30]} 28. Be2 {[%emt 0:05:38]} Bc4 {[%emt 0:03:30]} 29. Bg4 {[%emt 0:00:49]} b4 {[%emt 0:03:30]} 30. e4 {[%emt 0:03:55]} Kd6 {[%emt 0:00:30]} 31. axb4 {[%emt 0:01:49]} cxb4 {[%emt 0:01:30]} 32. Bf5 {[%emt 0:02:03]} a4 {[%emt 0:00:30]} 33. b3 {[%emt 0:06:51]} a3 {[%emt 0:00:30]} 0-1

[Event "25th Bosnjaci Open 2020"]
[Site "Bosnjaci"]
[Date "2020.01.06"]
[Round "6.13"]
[White "Kirilov, Ivaylo"]
[Black "Vidovic, Sasa"]
[Result "0-1"]
[ECO "B07"]
[WhiteElo "1869"]
[BlackElo "2187"]
[Annotator "ChessBase"]
[PlyCount "68"]
[EventDate "2020.01.03"]
[EventType "swiss"]
[EventCountry "CRO"]
[SourceTitle "playchess.com"]
[Source "ChessBase"]
[SourceQuality "1"]
[TimeControl "5400+30"]

1. e4 {[%emt 0:00:30]} d6 {[%emt 0:00:30]} 2. d4 {[%emt 0:00:00]} Nf6 {[%emt 0:00:00]} 3. Nc3 {[%emt 0:00:00]} c6 {[%emt 0:00:00]} 4. a4 {[%emt 0:00:30]} Qa5 {[%emt 0:00:30]} 5. Bd2 {[%emt 0:06:30]} e5 {[%emt 0:02:30]} 6. Nd5 {[%emt 0:02:30]} Qd8 {[%emt 0:00:30]} 7. Nxf6+ {[%emt 0:00:30]} Qxf6 {[%emt 0:00:30]} 8. Be3 {[%emt 0:00:30]} h6 {[%emt 0:17:30]} 9. Bc4 {[%emt 0:05:30]} Be7 {[%emt 0:04:30]} 10. h3 {[%emt 0:04:30]} O-O {[%emt 0:02:30]} 11. c3 {[%emt 0:03:30]} Qg6 {[%emt 0:05:30]} 12. Qf3 {[%emt 0:01:30]} Kh8 {[%emt 0:16:30]} 13. g4 {[%emt 0:03:30]} exd4 {[%emt 0:19:30]} 14. Bxd4 {[%emt 0:03:30]} c5 {[%emt 0:05:30]} 15. Be3 {[%emt 0:00:30]} Nc6 {[%emt 0:03:06]} 16. Bd3 {[%emt 0:05:30]} Ne5 {[%emt 0:01:24]} 17. Qe2 {[%emt 0:00:00]} d5 {[%emt 0:04:45]} 18. f3 {[%emt 0:04:00]} Nxd3+ {[%emt 0:01:42]} 19. Qxd3 {[%emt 0:00:00]} dxe4 {[%emt 0:00:20]} 20. Qxe4 {[%emt 0:01:00]} Bh4+ {[%emt 0:00:39]} 21. Kf1 {[%emt 0:01:30]} f5 {[%emt 0:00:39]} 22. Qd3 {[%emt 0:00:30]} b6 {[%emt 0:03:38]} 23. Ne2 {[%emt 0:05:30]} Qf7 {[%emt 0:00:34]} 24. g5 {[%emt 0:01:30]} hxg5 {[%emt 0:00:28]} 25. Bf2 {[%emt 0:03:30]} Be6 {[%emt 0:01:11]} 26. Bxh4 {[%emt 0:00:30]} Bc4 {[%emt 0:00:19]} 27. Qd2 {[%emt 0:00:30]} gxh4 {[%emt 0:00:44]} 28. Kf2 {[%emt 0:01:30]} f4 {[%emt 0:01:43]} 29. Rae1 {[%emt 0:01:30]} Rad8 {[%emt 0:00:31]} 30. Qc2 {[%emt 0:01:30]} Bb3 {[%emt 0:00:36]} 31. Qe4 {[%emt 0:02:30]} Rfe8 {[%emt 0:00:22]} 32. Qc6 {[%emt 0:00:30]} Bd5 {[%emt 0:00:33]} 33. Qb5 {[%emt 0:00:00]} Bc4 {[%emt 0:00:18]} 34. Qc6 {[%emt 0:00:00]} Re6 {[%emt 0:00:13]} 0-1

[Event "25th Bosnjaci Open 2020"]
[Site "Bosnjaci"]
[Date "2020.01.06"]
[Round "6.14"]
[White "Ljikar, Zoran"]
[Black "Brkic, Zdenko"]
[Result "1/2-1/2"]
[ECO "B01"]
[WhiteElo "2179"]
[BlackElo "2036"]
[Annotator "ChessBase"]
[PlyCount "121"]
[EventDate "2020.01.03"]
[EventType "swiss"]
[EventCountry "CRO"]
[SourceTitle "playchess.com"]
[Source "ChessBase"]
[SourceQuality "1"]
[TimeControl "5400+30"]

1. e4 {[%emt 0:00:30]} d5 {[%emt 0:00:30]} 2. exd5 {[%emt 0:00:00]} Qxd5 {[%emt 0:00:00]} 3. Nc3 {[%emt 0:00:00]} Qd8 {[%emt 0:00:00]} 4. d4 {[%emt 0:00:30]} g6 {[%emt 0:00:00]} 5. h3 {[%emt 0:07:30]} Bg7 {[%emt 0:00:00]} 6. Nf3 {[%emt 0:00:30]} Nf6 {[%emt 0:00:30]} 7. Bc4 {[%emt 0:00:30]} O-O {[%emt 0:00:00]} 8. O-O {[%emt 0:00:30]} b6 {[%emt 0:00:00]} 9. Bf4 {[%emt 0:06:30]} Bb7 {[%emt 0:02:30]} 10. Qe2 {[%emt 0:02:30]} a6 {[%emt 0:02:30]} 11. a4 {[%emt 0:01:30]} Nc6 {[%emt 0:01:30]} 12. Rad1 {[%emt 0:02:30]} Nb4 {[%emt 0:04:30]} 13. Rfe1 {[%emt 0:01:30]} Bxf3 {[%emt 0:10:30]} 14. gxf3 {[%emt 0:03:30]} Qd7 {[%emt 0:19:30]} 15. Qxe7 {[%emt 0:02:30]} Qf5 {[%emt 0:04:30]} 16. Qe5 {[%emt 0:00:30]} Qxh3 {[%emt 0:00:30]} 17. Bf1 {[%emt 0:06:30]} Qxf3 {[%emt 0:05:30]} 18. Bg2 {[%emt 0:00:30]} Qg4 {[%emt 0:00:30]} 19. f3 {[%emt 0:00:30]} Qd7 {[%emt 0:04:30]} 20. Qxc7 {[%emt 0:00:30]} Nxc2 {[%emt 0:01:30]} 21. Re7 {[%emt 0:10:30]} Qxc7 {[%emt 0:03:30]} 22. Bxc7 {[%emt 0:00:30]} Ra7 {[%emt 0:01:30]} 23. d5 {[%emt 0:01:30]} Ne3 {[%emt 0:03:30]} 24. Rxe3 {[%emt 0:10:30]} Rxc7 {[%emt 0:00:00]} 25. d6 {[%emt 0:00:30]} Ra7 {[%emt 0:03:00]} 26. Re7 {[%emt 0:02:30]} Nd7 {[%emt 0:06:30]} 27. f4 {[%emt 0:09:30]} Bf6 {[%emt 0:09:22]} 28. Re4 {[%emt 0:07:30]} Nc5 {[%emt 0:03:43]} 29. Rc4 {[%emt 0:00:30]} Rd8 {[%emt 0:00:58]} 30. a5 {[%emt 0:01:30]} Ne6 {[%emt 0:01:42]} 31. axb6 {[%emt 0:00:00]} Rad7 {[%emt 0:00:01]} 32. b7 {[%emt 0:01:00]} Rb8 {[%emt 0:01:39]} 33. Rc8+ {[%emt 0:05:00]} Rd8 {[%emt 0:00:10]} 34. Rxb8 {[%emt 0:00:19]} Rxb8 {[%emt 0:00:01]} 35. Nd5 {[%emt 0:00:11]} Bd8 {[%emt 0:01:19]} 36. Rc1 {[%emt 0:01:49]} Kg7 {[%emt 0:00:14]} 37. Nc7 {[%emt 0:00:05]} Nxf4 {[%emt 0:00:31]} 38. Nxa6 {[%emt 0:00:36]} Rxb7 {[%emt 0:00:18]} 39. Bxb7 {[%emt 0:00:39]} Ne2+ {[%emt 0:00:03]} 40. Kf2 {[%emt 0:00:52]} Nxc1 {[%emt 0:00:01]} 41. Ke3 {[%emt 0:00:42]} Kf6 {[%emt 0:00:28]} 42. Kd4 {[%emt 0:00:12]} Ke6 {[%emt 0:00:22]} 43. Bd5+ {[%emt 0:01:36]} Kxd6 {[%emt 0:00:12]} 44. Bxf7 {[%emt 0:00:04]} Bf6+ {[%emt 0:00:12]} 45. Ke4 {[%emt 0:00:17]} Ne2 {[%emt 0:01:06]} 46. b4 {[%emt 0:00:48]} Nc3+ {[%emt 0:00:14]} 47. Kd3 {[%emt 0:00:17]} Nd5 {[%emt 0:00:43]} 48. b5 {[%emt 0:00:31]} Bd8 {[%emt 0:00:19]} 49. Nb8 {[%emt 0:04:08]} Ne7 {[%emt 0:01:23]} 50. Be8 {[%emt 0:00:50]} Bb6 {[%emt 0:01:58]} 51. Nd7 {[%emt 0:00:11]} Nd5 {[%emt 0:01:23]} 52. Bf7 {[%emt 0:03:32]} Kxd7 {[%emt 0:00:39]} 53. Bxd5 {[%emt 0:00:01]} Ke7 {[%emt 0:00:16]} 54. Ke4 {[%emt 0:01:58]} Kf6 {[%emt 0:00:04]} 55. Kf4 {[%emt 0:00:54]} h5 {[%emt 0:00:01]} 56. Kg3 {[%emt 0:00:40]} g5 {[%emt 0:00:16]} 57. Bf3 {[%emt 0:00:35]} Bc7+ {[%emt 0:00:45]} 58. Kh3 {[%emt 0:00:18]} Kg6 {[%emt 0:00:04]} 59. Be2 {[%emt 0:00:20]} h4 {[%emt 0:00:41]} 60. Kg4 {[%emt 0:00:45]} Kf6 {[%emt 0:00:02]} 61. Bf3 {[%emt 0:00:21]} 1/2-1/2

[Event "25th Bosnjaci Open 2020"]
[Site "Bosnjaci"]
[Date "2020.01.07"]
[Round "7.6"]
[White "Matanovic, Luka"]
[Black "Babic, Zvonko"]
[Result "1/2-1/2"]
[ECO "B07"]
[WhiteElo "2256"]
[BlackElo "2165"]
[Annotator "ChessBase"]
[PlyCount "28"]
[EventDate "2020.01.03"]
[EventType "swiss"]
[EventCountry "CRO"]
[SourceTitle "playchess.com"]
[Source "ChessBase"]
[SourceQuality "1"]
[TimeControl "5400+30"]

1. e4 {[%emt 0:00:30]} d6 {[%emt 0:00:30]} 2. d4 {[%emt 0:00:00]} Nf6 {[%emt 0:00:00]} 3. Bd3 {[%emt 0:01:00]} e5 {[%emt 0:01:00]} 4. c3 {[%emt 0:00:30]} Be7 {[%emt 0:00:30]} 5. Nf3 {[%emt 0:01:30]} Bg4 {[%emt 0:00:30]} 6. Nbd2 {[%emt 0:05:30]} c6 {[%emt 0:04:30]} 7. h3 {[%emt 0:04:30]} Bxf3 {[%emt 0:03:30]} 8. Nxf3 {[%emt 0:00:30]} Nbd7 {[%emt 0:00:00]} 9. O-O {[%emt 0:03:30]} O-O {[%emt 0:03:00]} 10. Re1 {[%emt 0:03:30]} a5 {[%emt 0:11:30]} 11. Bc2 {[%emt 0:05:30]} c5 {[%emt 0:07:30]} 12. Qd3 {[%emt 0:10:30]} Qc7 {[%emt 0:13:30]} 13. Bb3 {[%emt 0:11:30]} a4 {[%emt 0:02:30]} 14. Bd5 {[%emt 0:03:30]} Nxd5 {[%emt 0:05:30]} 1/2-1/2

[Event "25th Bosnjaci Open 2020"]
[Site "Bosnjaci"]
[Date "2020.01.07"]
[Round "7.9"]
[White "Lazor, Vladimir"]
[Black "Zufic, Miroslav"]
[Result "1/2-1/2"]
[ECO "B90"]
[WhiteElo "2158"]
[BlackElo "2375"]
[Annotator "ChessBase"]
[PlyCount "132"]
[EventDate "2020.01.03"]
[EventType "swiss"]
[EventCountry "CRO"]
[SourceTitle "playchess.com"]
[Source "ChessBase"]
[SourceQuality "1"]
[TimeControl "5400+30"]

1. e4 {[%emt 0:05:30]} c5 {[%emt 0:00:30]} 2. Nf3 {[%emt 0:00:30]} d6 {[%emt 0:00:00]} 3. d4 {[%emt 0:00:00]} cxd4 {[%emt 0:00:00]} 4. Nxd4 {[%emt 0:00:00]} Nf6 {[%emt 0:00:00]} 5. Nc3 {[%emt 0:00:30]} a6 {[%emt 0:00:00]} 6. a4 {[%emt 0:00:30]} g6 {[%emt 0:03:30]} 7. Be2 {[%emt 0:00:30]} Bg7 {[%emt 0:00:00]} 8. O-O {[%emt 0:00:00]} O-O {[%emt 0:00:00]} 9. Be3 {[%emt 0:00:00]} Nc6 {[%emt 0:04:30]} 10. f3 {[%emt 0:03:30]} Bd7 {[%emt 0:03:30]} 11. Qd2 {[%emt 0:00:30]} Re8 {[%emt 0:03:30]} 12. Rfd1 {[%emt 0:00:30]} Rc8 {[%emt 0:01:30]} 13. Nb3 {[%emt 0:01:30]} Ne5 {[%emt 0:12:30]} 14. a5 {[%emt 0:03:30]} Nc4 {[%emt 0:00:30]} 15. Bxc4 {[%emt 0:00:30]} Rxc4 {[%emt 0:00:30]} 16. Qd3 {[%emt 0:01:30]} Qc8 {[%emt 0:01:30]} 17. Nd2 {[%emt 0:04:30]} Rc6 {[%emt 0:06:30]} 18. Nb3 {[%emt 0:00:30]} Qb8 {[%emt 0:07:30]} 19. Na4 {[%emt 0:02:30]} Rc7 {[%emt 0:02:30]} 20. Nb6 {[%emt 0:00:30]} Be6 {[%emt 0:00:30]} 21. Nd4 {[%emt 0:06:30]} Nd7 {[%emt 0:04:30]} 22. Nxd7 {[%emt 0:18:30]} Bxd7 {[%emt 0:03:30]} 23. c4 {[%emt 0:00:30]} Qc8 {[%emt 0:15:30]} 24. b3 {[%emt 0:02:30]} f5 {[%emt 0:03:30]} 25. exf5 {[%emt 0:02:30]} gxf5 {[%emt 0:00:00]} 26. Rac1 {[%emt 0:00:30]} Rc5 {[%emt 0:07:43]} 27. Bd2 {[%emt 0:07:30]} e5 {[%emt 0:02:45]} 28. Ne2 {[%emt 0:01:30]} d5 {[%emt 0:02:17]} 29. cxd5 {[%emt 0:03:30]} e4 {[%emt 0:01:08]} 30. fxe4 {[%emt 0:02:30]} Rxe4 {[%emt 0:01:34]} 31. Be3 {[%emt 0:01:30]} Rxc1 {[%emt 0:01:11]} 32. Nxc1 {[%emt 0:04:30]} Bb5 {[%emt 0:06:13]} 33. Qd2 {[%emt 0:00:00]} Bc3 {[%emt 0:01:45]} 34. Qf2 {[%emt 0:00:00]} f4 {[%emt 0:00:28]} 35. Bb6 {[%emt 0:02:30]} Qe8 {[%emt 0:02:19]} 36. d6 {[%emt 0:01:30]} Bd7 {[%emt 0:03:13]} 37. h3 {[%emt 0:00:30]} Be1 {[%emt 0:00:11]} 38. Qf3 {[%emt 0:02:30]} Bg3 {[%emt 0:00:38]} 39. Nd3 {[%emt 0:00:30]} h5 {[%emt 0:01:02]} 40. Bf2 {[%emt 0:00:30]} Bxf2+ {[%emt 0:00:35]} 41. Nxf2 {[%emt 0:01:30]} Re1+ {[%emt 0:00:51]} 42. Rxe1 {[%emt 0:01:30]} Qxe1+ {[%emt 0:00:04]} 43. Kh2 {[%emt 0:00:00]} Qe5 {[%emt 0:00:41]} 44. Nd3 {[%emt 0:01:00]} Qxd6 {[%emt 0:00:12]} 45. Nxf4 {[%emt 0:00:30]} h4 {[%emt 0:00:31]} 46. Qe4 {[%emt 0:02:59]} Kg7 {[%emt 0:01:02]} 47. b4 {[%emt 0:04:31]} Kh6 {[%emt 0:00:33]} 48. Kg1 {[%emt 0:00:26]} Qd1+ {[%emt 0:00:25]} 49. Kf2 {[%emt 0:00:34]} Qd2+ {[%emt 0:00:14]} 50. Ne2 {[%emt 0:00:27]} Kg5 {[%emt 0:00:48]} 51. Qe3+ {[%emt 0:03:34]} Qxe3+ {[%emt 0:00:05]} 52. Kxe3 {[%emt 0:00:16]} Bc6 {[%emt 0:00:39]} 53. g3 {[%emt 0:00:45]} hxg3 {[%emt 0:00:24]} 54. Nxg3 {[%emt 0:00:12]} Kh4 {[%emt 0:00:47]} 55. Nf5+ {[%emt 0:05:00]} Kxh3 {[%emt 0:00:06]} 56. Ne7 {[%emt 0:01:14]} Bg2 {[%emt 0:00:58]} 57. Kf4 {[%emt 0:02:32]} Bh1 {[%emt 0:00:35]} 58. Ke5 {[%emt 0:01:20]} Kg3 {[%emt 0:00:07]} 59. Kd6 {[%emt 0:00:13]} Kf4 {[%emt 0:00:31]} 60. Kc7 {[%emt 0:00:32]} Ke5 {[%emt 0:00:48]} 61. Nc8 {[%emt 0:02:25]} Kd4 {[%emt 0:00:02]} 62. Nd6 {[%emt 0:00:23]} Kc3 {[%emt 0:00:14]} 63. b5 {[%emt 0:00:36]} axb5 {[%emt 0:00:21]} 64. Nxb5+ {[%emt 0:00:02]} Kb4 {[%emt 0:00:11]} 65. Kb6 {[%emt 0:00:03]} Bg2 {[%emt 0:00:31]} 66. Nd6 {[%emt 0:00:21]} Bf3 {[%emt 0:00:24]} 1/2-1/2

[Event "25th Bosnjaci Open 2020"]
[Site "Bosnjaci"]
[Date "2020.01.09"]
[Round "9.10"]
[White "Zovko, Mario"]
[Black "Mesic, Ismet"]
[Result "1-0"]
[ECO "C14"]
[WhiteElo "2330"]
[BlackElo "1874"]
[Annotator "RC"]
[PlyCount "99"]
[EventDate "2020.01.03"]
[EventType "swiss"]
[EventCountry "CRO"]
[SourceTitle "playchess.com"]
[Source "ChessBase"]
[SourceQuality "1"]
[TimeControl "5400+30"]

1. e4 {[%emt 0:01:30]} e6 {[%emt 0:04:30]} 2. d4 {[%emt 0:00:00]} d5 {[%emt 0:00:30]} 3. Nc3 {[%emt 0:00:00]} Nf6 {[%emt 0:00:00]} 4. Bg5 {[%emt 0:00:30]} Be7 {[%emt 0:01:00]} 5. e5 {[%emt 0:02:30]} Nfd7 {[%emt 0:00:30]} 6. Bxe7 {[%emt 0:00:30]} Qxe7 {[%emt 0:00:30]} 7. f4 {[%emt 0:00:00]} a6 {[%emt 0:00:30]} 8. Qg4 {[%emt 0:00:00]} f5 {[%emt 0:06:30]} 9. exf6 {[%emt 0:07:30]} Nxf6 {[%emt 0:00:30]} 10. Qh4 {[%emt 0:00:30]} c5 {[%emt 0:07:30]} 11. Nf3 {[%emt 0:01:30]} Nc6 {[%emt 0:01:30]} 12. O-O-O {[%emt 0:07:30]} cxd4 {[%emt 0:15:30]} 13. Nxd4 {[%emt 0:00:30]} Nxd4 {[%emt 0:03:30]} 14. Rxd4 {[%emt 0:00:30]} Qc5 {[%emt 0:02:30]} 15. Rd1 {[%emt 0:00:00]} Bd7 {[%emt 0:02:30]} 16. Bd3 {[%emt 0:02:00]} O-O-O {[%emt 0:01:30]} 17. Qg5 {[%emt 0:03:30]} Rhg8 {[%emt 0:13:30]} 18. Rhe1 {[%emt 0:10:30]} h6 {[%emt 0:07:30]} 19. Qe5 {[%emt 0:09:30]} Ng4 {[%emt 0:11:30]} 20. Qe2 {[%emt 0:03:30]} Nf2 {[%emt 0:03:57]} 21. Rd2 {[%emt 0:00:00]} Nxd3+ {[%emt 0:00:31]} 22. Qxd3 {[%emt 0:00:00]} Rgf8 {[%emt 0:01:07]} 23. Qg3 {[%emt 0:29:30]} Rf7 {[%emt 0:02:07]} 24. Rd3 {[%emt 0:01:22]} Qc7 {[%emt 0:01:52]} 25. Ne2 {[%emt 0:02:17]} Kb8 {[%emt 0:00:30]} 26. Qe3 {[%emt 0:04:06]} Bb5 {[%emt 0:04:22]} 27. Rd4 {[%emt 0:00:12]} Re8 {[%emt 0:03:20]} 28. Nc3 {[%emt 0:00:54]} Bc6 {[%emt 0:01:15]} 29. g3 {[%emt 0:00:27]} Qd7 {[%emt 0:00:46]} 30. a3 {[%emt 0:01:06]} Kc8 {[%emt 0:00:52]} 31. Rb4 {[%emt 0:04:23]} Kb8 {[%emt 0:00:47]} 32. Rd4 {[%emt 0:03:25]} Kc8 {[%emt 0:00:28]} 33. Qd2 {[%emt 0:00:18]} Qc7 {[%emt 0:01:27]} 34. h4 {[%emt 0:02:22]} Rf6 {[%emt 0:01:14]} 35. Re5 {[%emt 0:01:05]} Ref8 {[%emt 0:00:39]} 36. Qe3 {[%emt 0:00:40]} Bd7 {[%emt 0:00:29]} 37. Rd3 {[%emt 0:02:15]} Kb8 {[%emt 0:00:30]} 38. Ne2 {[%emt 0:00:17]} Re8 {[%emt 0:00:43]} 39. Nd4 {[%emt 0:00:33]} Qd6 {[%emt 0:00:27]} 40. Rb3 {[%emt 0:00:49]} Qc7 {[%emt 0:00:31]} 41. Qe2 {[%emt 0:00:35]} Ka8 {[%emt 0:00:19]} 42. Ree3 {[%emt 0:00:22]} Qd6 {[%emt 0:00:28]} 43. Nf3 {[%emt 0:00:39]} Bb5 {[%emt 0:00:37]} 44. Qd2 {[%emt 0:00:19]} Kb8 {[%emt 0:00:38]} 45. Qd4 {[%emt 0:00:22]} Rc8 {[%emt 0:00:26]} 46. Rec3 {[%emt 0:00:54]} Rff8 {[%emt 0:00:34]} 47. a4 {[%emt 0:00:43]} Bc4 {[%emt 0:00:31]} 48. Rb6 {[%emt 0:00:19]} Rc6 {[%emt 0:00:30]} 49. Rxc6 {[%emt 0:00:16]} Qxc6 {[%emt 0:00:26]} 50. b3 {[%emt 0:00:12]} 1-0